fUST/lending_fUST_20250613
["ID","MTS","AMOUNT","RATE_DAILY","PERIOD"]
[365661460,1749823849686,-460.0,0.00023287,4]
[365661462,1749823849696,-2232.62,0.00023287,4]
[365661464,1749823849705,-448.25,0.00023287,4]
[365661466,1749823849715,-1088.01,0.00023287,4]
[365661468,1749823849725,-460.0,0.00023287,4]
[365661470,1749823849734,-460.0,0.00023287,4]
[365661472,1749823849743,-1889.33,0.00023287,4]
[365661474,1749823849753,-2525.75,0.00023287,4]
[365661476,1749823849763,-627.58,0.00023287,4]
[365661478,1749823849772,-460.0,0.00023287,4]
[365661480,1749823849782,-460.0,0.00023287,4]
[365661482,1749823849791,-3564.51,0.00023287,4]
[365661484,1749823849801,-460.0,0.00023287,4]
[365661486,1749823849810,-460.0,0.00023287,4]
[365661488,1749823849821,-424.32678023,0.0002329,3]
[365661490,1749823849830,-1087.34,0.0002329,2]
[365661492,1749823849839,-160.0,0.000233,3]
[365661494,1749823849848,-160.0,0.000233,3]
[365661496,1749823849858,-12531.02669373,0.000233,3]
[365661498,1749823849867,-835.28007164,0.000233,3]
[365661500,1749823849876,-229.78555783,0.000233,3]
[365661502,1749823849886,-176.9539549,0.00023342,2]
[365661504,1749823849895,-153.0,0.00023342,2]
[365661506,1749823849904,-166.8102269,0.00023342,2]
[365661508,1749823849914,-573.6747916,0.00023342,2]
[365661510,1749823849923,-158.8399287,0.00023342,2]
[365661512,1749823849933,-176.9539549,0.00023342,2]
[365661513,1749823849942,-158.8399287,0.00023342,2]
[365661514,1749823849952,-153.0,0.00023342,2]
[365661515,1749823849961,-153.0,0.00023342,2]
[365661516,1749823849970,-573.6747916,0.00023342,2]
[365661517,1749823849979,-176.9539549,0.00023342,2]
[365661518,1749823849989,-158.8399287,0.00023342,2]
[365661519,1749823849998,-573.6747916,0.00023342,2]
[365661520,1749823850008,-158.8399287,0.00023342,2]
[365661521,1749823850017,-153.0,0.00023342,2]
[365661523,1749823850027,-356.1638895,0.00023342,2]
[365661525,1749823850036,-573.6747916,0.00023342,2]
[365661527,1749823850045,-153.0,0.00023342,2]
[365661529,1749823850054,-332.5463551,0.00023342,2]
[365661531,1749823850064,-381.5187816,0.00023342,2]
[365661533,1749823850075,-153.0,0.00023342,2]
[365661535,1749823850087,-153.0,0.00023342,2]
[365661537,1749823850096,-573.4653004,0.00023342,2]
[365661539,1749823850106,-153.0,0.00023342,2]
[365661541,1749823850115,-153.0,0.00023342,2]
[365661543,1749823850124,-306.0,0.00023342,2]
[365661545,1749823850133,-311.5050251,0.00023342,2]
[365661547,1749823850143,-153.0,0.00023342,2]
[365661550,1749823850153,-153.0,0.00023342,2]
[365661551,1749823850166,-153.0,0.00023342,2]
[365661553,1749823850175,-153.0,0.00023342,2]
[365661556,1749823850185,-41106.6963582,0.00023354,2]
[365661558,1749823850195,-6000.0,0.00023362,3]
[365661560,1749823850205,-693.97484646,0.00023383,9]
[365661562,1749823850215,-424.32678023,0.000234,3]
[365661564,1749823850225,-151.0,0.000234,7]
[365661566,1749823850235,-4000.0,0.00023412,3]
[365661568,1749823850245,-500.0,0.00023421,2]
[365661569,1749823850256,-264.78445052,0.00023433,2]
[365661570,1749823850265,-180.0708049,0.00023442,2]
[365661571,1749823850275,-573.6747916,0.00023442,2]
[365661572,1749823850284,-160.0,0.00023507,4]
[365661573,1749823850295,-2321.753322,0.0002352,3]
[365661574,1749823850304,-693.97484646,0.00023521,9]
[365661575,1749823850314,-153396.84746657,0.00023553,2]
[365661576,1749823850325,-151.0,0.00023553,7]
[365661577,1749823850334,-151.0,0.00023553,7]
[365661578,1749823850344,-151.0,0.00023553,7]
[365661579,1749823850354,-151.0,0.00023553,7]
[365661580,1749823850364,-152.152704,0.00023553,7]
[365661581,1749823850374,-151.0,0.00023553,7]
[365661582,1749823850383,-3725.730368,0.00023553,2]
[365661583,1749823850392,-3725.730368,0.00023553,2]
[365661584,1749823850401,-151.0,0.00023553,7]
[365661585,1749823850411,-153.789681,0.00023553,7]
[365661586,1749823850421,-151.861006,0.00023553,7]
[365661587,1749823850432,-151.861006,0.00023553,7]
[365661588,1749823850442,-635.165579,0.00023553,7]
[365661589,1749823850452,-635.165579,0.00023553,7]
[365661590,1749823850462,-151.0,0.00023553,7]
[365661591,1749823850472,-199.870555,0.00023553,7]
[365661592,1749823850481,-151.0,0.00023553,7]
[365661593,1749823850491,-151.0,0.00023553,7]
[365661594,1749823850500,-199.870555,0.00023553,7]
[365661595,1749823850509,-151.0,0.00023553,7]
[365661596,1749823850519,-151.0,0.00023553,7]
[365661597,1749823850528,-161.276549,0.00023553,7]
[365661598,1749823850537,-217.006494,0.00023553,7]
[365661599,1749823850547,-151.0,0.00023553,7]
[365661600,1749823850556,-217.006494,0.00023553,7]
[365661601,1749823850565,-153.829744,0.00023553,7]
[365661602,1749823850576,-369.618421,0.00023553,7]
[365661603,1749823850585,-151.0,0.00023553,7]
[365661604,1749823850594,-369.618421,0.00023553,7]
[365661606,1749823850603,-151.0,0.00023553,7]
[365661607,1749823850612,-151.0,0.00023553,7]
[365661608,1749823850621,-151.0,0.00023553,7]
[365661609,1749823850631,-151.0,0.00023553,7]
[365661610,1749823850641,-151.0,0.00023553,7]
[365661611,1749823850651,-152.375438,0.00023553,7]
[365661612,1749823850660,-151.0,0.00023553,7]
[365661613,1749823850669,-151.376073,0.00023553,7]
[365661614,1749823850679,-151.0,0.00023553,7]
[365661615,1749823850688,-152.225194,0.00023553,7]
[365661616,1749823850698,-151.0,0.00023553,7]
[365661617,1749823850707,-151.0,0.00023553,7]
[365661618,1749823850716,-460.0,0.00023561,4]
[365661619,1749823850726,-433.82457458,0.00023561,2]
[365661620,1749823850736,-460.0,0.00023561,4]
[365661621,1749823850745,-1834.56,0.00023561,4]
[365661622,1749823850754,-2784.47,0.00023561,4]
[365661623,1749823850764,-178.72,0.00023561,4]
[365661632,1749823850855,-1433.23,0.00023561,4]
[365661635,1749823850867,-1946.46,0.00023561,4]
[365661637,1749823850877,-460.0,0.00023561,4]
[365661639,1749823850887,-854.78,0.00023561,4]
[365661641,1749823850898,-2344.68,0.00023561,4]
[365661643,1749823850909,-460.0,0.00023561,4]
[365661645,1749823850920,-470.89,0.00023561,4]
[365661647,1749823850930,-460.0,0.00023561,4]
[365661649,1749823850940,-971.46,0.00023561,4]
[365661651,1749823850950,-460.0,0.00023561,4]
[365661653,1749823850960,-460.0,0.00023561,4]
[365661655,1749823850970,-996.54,0.00023561,4]
[365661657,1749823850980,-460.0,0.00023561,4]
[365661658,1749823850990,-713.93,0.00023561,4]
[365661661,1749823851000,-732.16,0.00023561,4]
[365661663,1749823851011,-712.62,0.00023561,4]
[365661665,1749823851021,-460.0,0.00023561,4]
[365661666,1749823851031,-2232.62,0.00023561,4]
[365661669,1749823851040,-1088.01,0.00023561,4]
[365661671,1749823851051,-460.0,0.00023561,4]
[365661673,1749823851060,-460.0,0.00023561,4]
[365661675,1749823851075,-1889.33,0.00023561,4]
[365661677,1749823851085,-2525.75,0.00023561,4]
[365661679,1749823851095,-627.58,0.00023561,4]
[365661681,1749823851107,-460.0,0.00023561,4]
[365661683,1749823851117,-460.0,0.00023561,4]
[365661685,1749823851127,-3564.51,0.00023561,4]
[365661686,1749823851137,-460.0,0.00023561,4]
[365661688,1749823851147,-460.0,0.00023561,4]
[365661690,1749823851157,-693.97484646,0.00023659,9]
[365661693,1749823851171,-151.0,0.00023659,7]
[365661695,1749823851181,-151.0,0.00023659,7]
[365661697,1749823851191,-160.0,0.00023687,2]
[365661698,1749823851200,-835.28007164,0.00023687,2]
[365661700,1749823851210,-424.32678023,0.0002369,2]
[365661702,1749823851220,-3000.0,0.000237,2]
[365661704,1749823851230,-6537.72846717,0.000237,2]
[365661706,1749823851241,-3000.0,0.0002371,2]
[365661708,1749823851251,-3000.0,0.0002372,2]
[365661710,1749823851261,-3000.0,0.0002373,2]
[365661712,1749823851270,-3000.0,0.0002374,2]
[365661714,1749823851280,-215.0738,0.00023747,2]
[365661716,1749823851290,-3000.0,0.0002375,2]
[365661718,1749823851300,-3000.0,0.0002376,2]
[365661720,1749823851310,-3000.0,0.0002377,2]
[365661722,1749823851325,-500.0,0.00023773,2]
[365661724,1749823851335,-500.0,0.00023773,2]
[365661726,1749823851345,-504.52806028,0.00023777,2]
[365661728,1749823851355,-12245.17395779,0.0002378,7]
[365661730,1749823851365,-3000.0,0.0002378,2]
[365661732,1749823851375,-3000.0,0.0002379,2]
[365661734,1749823851385,-501.46120462,0.00023792,9]
[365661736,1749823851395,-693.97484646,0.00023797,9]
[365661738,1749823851405,-200.0,0.00023799,2]
[365661740,1749823851415,-41181.43651932,0.000238,2]
[365661742,1749823851425,-497628.80565443,0.000238,3]
[365661754,1749823851540,-1196.21763495,0.000238,3]
[365661755,1749823851552,-1959.33086571,0.000238,3]
[365661756,1749823851565,-845002.9906718,0.000238,3]
[365661757,1749823851578,-1321.97,0.000238,2]
[365661758,1749823851588,-151.0,0.000238,7]
[365661759,1749823851597,-3000.0,0.000238,2]
[365661760,1749823851606,-151.0,0.000238,7]
[365661761,1749823851616,-151.0,0.000238,7]
[365661762,1749823851625,-151.0,0.000238,7]
[365661763,1749823851635,-151.0,0.000238,7]
[365661764,1749823851645,-151.0,0.000238,7]
[365661765,1749823851654,-243.061928,0.000238,7]
[365661766,1749823851664,-243.061928,0.000238,7]
[365661767,1749823851673,-151.0,0.000238,7]
[365661768,1749823851682,-151.0,0.000238,7]
[365661769,1749823851693,-287.330523,0.000238,7]
[365661770,1749823851702,-151.0,0.000238,7]
[365661771,1749823851711,-152.387913,0.000238,7]
[365661772,1749823851720,-156.211411,0.000238,7]
[365661773,1749823851730,-151.0,0.000238,7]
[365661774,1749823851739,-151.0,0.000238,7]
[365661775,1749823851748,-151.0,0.000238,7]
[365661776,1749823851758,-3725.730368,0.000238,2]
[365661777,1749823851767,-3725.730368,0.000238,2]
[365661778,1749823851776,-179.570934,0.000238,7]
[365661779,1749823851786,-250.0,0.000238,30]
[365661780,1749823851796,-151.861006,0.000238,7]
[365661781,1749823851805,-151.861006,0.000238,7]
[365661782,1749823851815,-635.165579,0.000238,7]
[365661783,1749823851828,-635.165579,0.000238,7]
[365661784,1749823851837,-964.598525,0.000238,7]
[365661785,1749823851847,-151.0,0.000238,7]
[365661786,1749823851856,-199.870555,0.000238,7]
[365661787,1749823851866,-964.598525,0.000238,7]
[365661788,1749823851876,-151.0,0.000238,7]
[365661789,1749823851885,-151.0,0.000238,7]
[365661790,1749823851895,-199.870555,0.000238,7]
[365661791,1749823851905,-151.0,0.000238,7]
[365661792,1749823851914,-151.0,0.000238,7]
[365661793,1749823851924,-217.006494,0.000238,7]
[365661794,1749823851934,-151.0,0.000238,7]
[365661795,1749823851944,-217.006494,0.000238,7]
[365661796,1749823851953,-160.0,0.000238,3]
[365661797,1749823851963,-369.618421,0.000238,7]
[365661798,1749823851972,-152.033656,0.000238,7]
[365661799,1749823851981,-369.618421,0.000238,7]
[365661800,1749823851991,-151.0,0.000238,7]
[365661801,1749823852000,-151.0,0.000238,7]
[365661802,1749823852009,-151.0,0.000238,7]
[365661803,1749823852020,-151.0,0.000238,7]
[365661804,1749823852029,-151.0,0.000238,7]
[365661805,1749823852039,-267.230632,0.000238,7]
[365661806,1749823852048,-151.0,0.000238,7]
[365661807,1749823852058,-835.28007164,0.000238,3]
[365661808,1749823852068,-151.0,0.000238,7]
[365661809,1749823852081,-151.0,0.000238,7]
[365661810,1749823852090,-229.78555783,0.000238,3]
[365661811,1749823852100,-1093.89,0.00023808,2]
[365661812,1749823852112,-3000.0,0.0002381,2]
[365661813,1749823852122,-3000.0,0.0002382,2]
[365661814,1749823852132,-3000.0,0.0002383,2]
[365661815,1749823852142,-6537.72846711,0.00023832,2]
[365661816,1749823852151,-460.0,0.00023835,4]
[365661817,1749823852164,-460.0,0.00023835,4]
[365661818,1749823852176,-1834.56,0.00023835,4]
[365661819,1749823852185,-2784.47,0.00023835,4]
[365661820,1749823852195,-1433.23,0.00023835,4]
[365661821,1749823852206,-1946.46,0.00023835,4]
[365661823,1749823852216,-460.0,0.00023835,4]
[365661824,1749823852225,-854.78,0.00023835,4]
[365661826,1749823852235,-2344.68,0.00023835,4]
[365661828,1749823852246,-460.0,0.00023835,4]
[365661830,1749823852255,-470.89,0.00023835,4]
[365661832,1749823852265,-460.0,0.00023835,4]
[365661834,1749823852274,-971.46,0.00023835,4]
[365661836,1749823852284,-460.0,0.00023835,4]
[365661838,1749823852293,-460.0,0.00023835,4]
[365661840,1749823852303,-996.54,0.00023835,4]
[365661842,1749823852313,-460.0,0.00023835,4]
[365661843,1749823852325,-713.93,0.00023835,4]
[365661845,1749823852336,-732.16,0.00023835,4]
[365661847,1749823852345,-712.62,0.00023835,4]
[365661848,1749823852355,-460.0,0.00023835,4]
[365661850,1749823852364,-2232.62,0.00023835,4]
[365661852,1749823852374,-1088.01,0.00023835,4]
[365661853,1749823852383,-460.0,0.00023835,4]
[365661855,1749823852393,-460.0,0.00023835,4]
[365661857,1749823852402,-1889.33,0.00023835,4]
[365661859,1749823852411,-2525.75,0.00023835,4]
[365661861,1749823852421,-627.58,0.00023835,4]
[365661863,1749823852431,-460.0,0.00023835,4]
[365661865,1749823852440,-460.0,0.00023835,4]
[365661867,1749823852452,-3564.51,0.00023835,4]
[365661869,1749823852461,-460.0,0.00023835,4]
[365661871,1749823852471,-200.5,0.00023836,3]
[365661873,1749823852480,-317.0,0.00023836,3]
[365661875,1749823852490,-317.0,0.00023836,3]
[365661877,1749823852499,-317.0,0.00023836,3]
[365661879,1749823852509,-317.0,0.00023836,3]
[365661881,1749823852519,-329.85445623,0.00023836,3]
[365661883,1749823852528,-3000.0,0.0002384,2]
[365661893,1749823852626,-3000.0,0.0002385,2]
[365661895,1749823852636,-201.0,0.0002386,9]
[365661897,1749823852646,-3000.0,0.0002386,2]
[365661899,1749823852656,-3000.0,0.0002387,2]
[365661901,1749823852666,-3000.0,0.0002388,2]
[365661903,1749823852675,-3000.0,0.0002389,2]
[365661905,1749823852684,-3000.0,0.000239,2]
[365661907,1749823852694,-1378.26,0.000239,31]
[365661909,1749823852703,-1378.26,0.000239,31]
[365661911,1749823852712,-1378.26,0.000239,31]
[365661913,1749823852722,-1378.26,0.000239,31]
[365661915,1749823852732,-1378.26,0.000239,31]
[365661917,1749823852741,-1378.26,0.000239,31]
[365661919,1749823852751,-1378.26,0.000239,31]
[365661920,1749823852760,-1378.26,0.000239,31]
[365661922,1749823852769,-1378.26,0.000239,31]
[365661924,1749823852779,-1378.26,0.000239,31]
[365661926,1749823852788,-1378.26,0.000239,31]
[365661928,1749823852798,-1378.26,0.000239,31]
[365661930,1749823852807,-1378.26,0.000239,31]
[365661932,1749823852815,-1378.26,0.000239,31]
[365661934,1749823852827,-1378.26,0.000239,31]
[365661936,1749823852836,-1378.26,0.000239,31]
[365661938,1749823852846,-3000.0,0.0002391,2]
[365661940,1749823852856,-3000.0,0.0002392,2]
[365661942,1749823852865,-3000.0,0.0002393,2]
[365661944,1749823852875,-693.97484646,0.00023934,10]
[365661946,1749823852884,-3000.0,0.0002394,2]
[365661948,1749823852894,-3000.0,0.0002395,2]
[365661949,1749823852902,-456.9146712,0.0002395,3]
[365661951,1749823852912,-3000.0,0.0002396,2]
[365661953,1749823852921,-6537.72846711,0.00023964,2]
[365661955,1749823852930,-3000.0,0.0002397,2]
[365661957,1749823852940,-500.0,0.00023973,2]
[365661959,1749823852949,-500.0,0.00023973,2]
[365661961,1749823852959,-600.0,0.00023973,2]
[365661963,1749823852969,-500.0,0.00023973,2]
[365661965,1749823852978,-500.0,0.00023973,2]
[365661967,1749823852988,-500.0,0.00023973,2]
[365661969,1749823852997,-500.0,0.00023973,2]
[365661971,1749823853007,-3000.0,0.0002398,2]
[365661973,1749823853016,-2200.0,0.00023981,2]
[365661974,1749823853026,-3000.0,0.0002399,2]
[365661976,1749823853035,-411396.13801182,0.00024,3]
[365661979,1749823853049,-531.88721493,0.00024,3]
[365661981,1749823853060,-6737.79220826,0.00024,3]
[365661983,1749823853073,-869.77412244,0.00024,3]
[365662005,1749823853312,-460.0,0.00021095,4]
[365662007,1749823853325,-460.0,0.00021095,4]
[365662009,1749823853335,-460.0,0.00021369,4]
[365662011,1749823853344,-460.0,0.00023835,4]
[365662012,1749823853354,-565.98898139,0.00024,3]
[365662014,1749823853366,-10215.20861564,0.00024,3]
[365662029,1749823853513,-346.58,0.00021085,10]
[365662031,1749823853523,-460.0,0.00021095,4]
[365662033,1749823853534,-460.0,0.00021369,4]
[365662034,1749823853543,-460.0,0.00021643,4]
[365662036,1749823853553,-460.0,0.00021643,4]
[365662038,1749823853562,-149.4766109,0.00021917,4]
[365662040,1749823853576,-310.5233891,0.00021917,4]
[365662042,1749823853585,-460.0,0.00021917,4]
[365662043,1749823853595,-460.0,0.00022191,4]
[365662045,1749823853604,-460.0,0.00022191,4]
[365662047,1749823853614,-460.0,0.00022465,4]
[365662048,1749823853623,-441.13,0.00022465,4]
[365662050,1749823853633,-460.0,0.00022739,4]
[365662052,1749823853643,-460.0,0.00023013,4]
[365662054,1749823853652,-460.0,0.00023287,4]
[365662055,1749823853662,-460.0,0.00023561,4]
[365662057,1749823853671,-424.32678023,0.00023687,2]
[365662059,1749823853681,-460.0,0.00023835,4]
[365662061,1749823853690,-19645.36033412,0.00024,3]
[365662063,1749823853702,-44807.6905871,0.00024,3]
[365662065,1749823853714,-5028.46370977,0.00024,3]
[365662077,1749823853856,-195.06,0.00021095,4]
[365662079,1749823853866,-151.0,0.00023553,7]
[365662081,1749823853875,-151.0,0.00023553,7]
[365662083,1749823853885,-151.0,0.000238,7]
[365662084,1749823853893,-151.0,0.000238,7]
[365662086,1749823853902,-11606.18816866,0.00024,3]
[365662235,1749824038237,882142.56202407,0.00024975,60]
[365662305,1749824428770,7592.551365,0.000219,60]
[365662307,1749824500188,160.954004,0.00013699,2]
[365662311,1749824597726,-176.747853,0.00020071,2]
[365662312,1749824597806,-236.722876,0.00020143,2]
[365662313,1749824597833,-300.0,0.00020452,2]
[365662314,1749824597862,-24286.529271,0.00020453,2]
[365662332,1749824793196,30496.0,0.00018,2]
[365662415,1749825031771,-161.0126298,0.0002,2]
[365662417,1749825031780,-2664.62072069,0.00020171,2]
[365662431,1749825031896,-22235.37927931,0.00020171,2]
[365662433,1749825031906,-1589.442047,0.00020197,2]
[365662435,1749825031917,-214.45448893,0.00020964,2]
[365662438,1749825031938,-725.0,0.00020964,2]
[365662441,1749825031948,-500.0,0.00020964,2]
[365662443,1749825031958,-300.0,0.00021094,2]
[365662445,1749825031968,-300.0,0.00021094,2]
[365662447,1749825031979,-440.0,0.00021095,2]
[365662449,1749825031989,-460.0,0.00021095,4]
[365662451,1749825031999,-222.72,0.00021095,4]
[365662453,1749825032009,-460.0,0.00021095,2]
[365662456,1749825032019,-460.0,0.00021095,4]
[365662459,1749825032029,-460.0,0.00021095,4]
[365662464,1749825032039,-1191.91,0.00021095,4]
[365662466,1749825032050,-887.29,0.00021095,4]
[365662468,1749825032060,-1348.94,0.00021095,4]
[365662470,1749825032070,-460.0,0.00021095,4]
[365662472,1749825032080,-460.0,0.00021095,4]
[365662474,1749825032090,-460.0,0.00021095,4]
[365662476,1749825032100,-460.0,0.00021095,4]
[365662478,1749825032110,-460.0,0.00021095,4]
[365662480,1749825032119,-460.0,0.00021095,4]
[365662482,1749825032129,-309.42,0.00021095,4]
[365662484,1749825032138,-460.0,0.00021095,4]
[365662486,1749825032148,-539.79,0.00021095,4]
[365662488,1749825032157,-568.93,0.00021095,4]
[365662490,1749825032169,-460.0,0.00021095,4]
[365662492,1749825032178,-460.0,0.00021095,4]
[365662494,1749825032187,-460.0,0.00021095,4]
[365662496,1749825032197,-460.0,0.00021095,4]
[365662498,1749825032207,-1209.34,0.00021095,4]
[365662500,1749825032216,-565.9,0.00021095,4]
[365662503,1749825032226,-460.0,0.00021095,4]
[365662505,1749825032235,-460.0,0.00021095,4]
[365662507,1749825032245,-460.0,0.00021095,4]
[365662509,1749825032255,-460.0,0.00021095,4]
[365662511,1749825032265,-460.0,0.00021095,4]
[365662513,1749825032275,-460.0,0.00021095,4]
[365662515,1749825032285,-1930.78,0.00021095,4]
[365662517,1749825032294,-1083.2,0.00021095,4]
[365662519,1749825032304,-1387.28,0.00021095,4]
[365662521,1749825032313,-589.34,0.00021095,4]
[365662523,1749825032323,-1031.79,0.00021095,4]
[365662525,1749825032333,-460.0,0.00021095,4]
[365662527,1749825032342,-168.17602011,0.00021269,2]
[365662529,1749825032351,-179.836,0.00021321,2]
[365662531,1749825032361,-495.04,0.00021369,4]
[365662533,1749825032371,-460.0,0.00021369,2]
[365662535,1749825032381,-460.0,0.00021369,4]
[365662537,1749825032390,-1191.91,0.00021369,4]
[365662539,1749825032400,-887.29,0.00021369,4]
[365662541,1749825032410,-1348.94,0.00021369,4]
[365662543,1749825032421,-460.0,0.00021369,4]
[365662545,1749825032431,-607.2319878,0.00021369,4]
[365662547,1749825032441,-460.0,0.00021369,4]
[365662549,1749825032451,-460.0,0.00021369,4]
[365662551,1749825032460,-460.0,0.00021369,4]
[365662553,1749825032470,-460.0,0.00021369,4]
[365662555,1749825032480,-539.79,0.00021369,4]
[365662557,1749825032490,-568.93,0.00021369,4]
[365662559,1749825032499,-460.0,0.00021369,4]
[365662561,1749825032509,-335.01,0.00021369,4]
[365662563,1749825032519,-460.0,0.00021369,4]
[365662565,1749825032529,-460.0,0.00021369,4]
[365662568,1749825032543,-1209.34,0.00021369,4]
[365662570,1749825032552,-177.37,0.00021369,4]
[365662572,1749825032562,-460.0,0.00021369,4]
[365662574,1749825032573,-450.54,0.00021369,4]
[365662576,1749825032582,-460.0,0.00021369,4]
[365662578,1749825032592,-460.0,0.00021369,4]
[365662580,1749825032602,-460.0,0.00021369,4]
[365662582,1749825032612,-1930.78,0.00021369,4]
[365662583,1749825032622,-1083.2,0.00021369,4]
[365662585,1749825032632,-1387.28,0.00021369,4]
[365662587,1749825032642,-589.34,0.00021369,4]
[365662590,1749825032654,-1031.79,0.00021369,4]
[365662591,1749825032665,-460.0,0.00021369,4]
[365662593,1749825032674,-495.05559834,0.00021369,4]
[365662595,1749825032684,-314.84286399,0.00021403,2]
[365662598,1749825032695,-168.0,0.00021404,2]
[365662600,1749825032705,-431.63,0.00021617,10]
[365662602,1749825032714,-296.413,0.00021626,2]
[365662604,1749825032724,-500.0,0.00021627,2]
[365662606,1749825032735,-500.0,0.00021627,2]
[365662608,1749825032744,-181.8462112,0.00021627,2]
[365662610,1749825032754,-233.94907006,0.00021627,2]
[365662612,1749825032764,-500.0,0.00021627,2]
[365662614,1749825032774,-500.0,0.00021627,2]
[365662616,1749825032784,-182.44478028,0.00021627,2]
[365662618,1749825032793,-436.06885972,0.00021627,2]
[365662620,1749825032803,-500.0,0.00021627,2]
[365662622,1749825032812,-500.0,0.00021627,2]
[365662624,1749825032822,-500.0,0.00021627,2]
[365662626,1749825032831,-500.0,0.00021627,2]
[365662628,1749825032841,-500.0,0.00021627,2]
[365662630,1749825032851,-500.0,0.00021627,2]
[365662632,1749825032861,-500.0,0.00021627,2]
[365662634,1749825032870,-500.0,0.00021627,2]
[365662636,1749825032880,-500.0,0.00021627,2]
[365662638,1749825032890,-500.0,0.00021627,2]
[365662640,1749825032900,-274.55521138,0.00021627,2]
[365662642,1749825032909,-500.0,0.00021627,2]
[365662644,1749825032923,-500.0,0.00021627,2]
[365662646,1749825032933,-500.0,0.00021627,2]
[365662648,1749825032943,-500.0,0.00021627,2]
[365662650,1749825032953,-500.0,0.00021627,2]
[365662652,1749825032962,-500.0,0.00021627,2]
[365662654,1749825032972,-500.0,0.00021627,2]
[365662656,1749825032981,-500.0,0.00021627,2]
[365662659,1749825032994,-500.0,0.00021627,2]
[365662661,1749825033003,-500.0,0.00021627,2]
[365662663,1749825033013,-500.0,0.00021627,2]
[365662664,1749825033023,-500.0,0.00021627,2]
[365662666,1749825033033,-500.0,0.00021627,2]
[365662669,1749825033043,-500.0,0.00021627,2]
[365662670,1749825033055,-500.0,0.00021627,2]
[365662673,1749825033067,-499.81549333,0.00021627,2]
[365662675,1749825033078,-500.0,0.00021627,2]
[365662677,1749825033088,-500.0,0.00021627,2]
[365662679,1749825033098,-500.0,0.00021627,2]
[365662681,1749825033108,-500.0,0.00021627,2]
[365662683,1749825033118,-500.0,0.00021627,2]
[365662685,1749825033128,-500.0,0.00021627,2]
[365662687,1749825033138,-500.0,0.00021627,2]
[365662689,1749825033147,-570.06859516,0.00021627,2]
[365662691,1749825033157,-500.0,0.00021627,2]
[365662693,1749825033170,-500.0,0.00021627,2]
[365662695,1749825033180,-500.0,0.00021627,2]
[365662697,1749825033190,-500.0,0.00021627,2]
[365662699,1749825033200,-500.0,0.00021627,2]
[365662701,1749825033211,-500.0,0.00021627,2]
[365662703,1749825033221,-500.0,0.00021627,2]
[365662705,1749825033231,-500.0,0.00021627,2]
[365662707,1749825033242,-500.0,0.00021627,2]
[365662709,1749825033252,-500.0,0.00021627,2]
[365662711,1749825033262,-500.0,0.00021627,2]
[365662713,1749825033272,-500.0,0.00021627,2]
[365662715,1749825033282,-500.0,0.00021627,2]
[365662717,1749825033292,-500.0,0.00021627,2]
[365662719,1749825033303,-500.0,0.00021627,2]